Cogmind - Beta 14 @@@ ROGUE MODE // 2024.11.16 @ 21:25:33 Player: KURIIRI Result: Destroyed by G-34 Mercenary with Small Laser Performance ------------- Evolutions (0) 0 Regions Visited (4) 800 Robots Destroyed (25) 125 Value Destroyed (579) 579 Prototype IDs (25) 500 Alien Tech Used (0) 0 Bonus (422) 422 TOTAL SCORE: 2426 Bonus ------- Follower Combat Kills 135 Aligned with FarCom 300 Friendly Fire -13 Cogmind --------- Core Integrity 0/250 Matter 294/300 Energy 250/250 System Corruption 0% Temperature Hot (260) Movement Core (500) Ox9 Location -9/Mines Parts ------- > --- POWER (1) -------- Ion Engine > --- PROPULSION (2) --- (None) > --- UTILITY (2) ------ Large Storage Unit > --- WEAPON (2) ------- Medium Laser Medium Laser > --- INVENTORY (15) --- Ion Engine Light Ion Engine Light Ion Engine Nuclear Core Reinforced Deuterium Engine Fission Core Light Treads Small Storage Unit Weapon Shielding EM Pulse Gun Medium Laser Medium Laser Hammer Longsword +1 Peak State ------------ > --- POWER ------------ Ion Engine > --- PROPULSION ------- Light Treads > --- UTILITY ---------- Large Storage Unit Light Armor Plating > --- WEAPON ----------- Medium Laser Assault Rifle > --- INVENTORY -------- Ion Engine Light Ion Engine Light Ion Engine Nuclear Core Reinforced Deuterium Engine Fission Core Light Treads Small Storage Unit Weapon Shielding EM Pulse Gun Medium Laser Medium Laser Medium Laser Hammer Longsword +1 [Rating: 9] Favorites ----------- Power Ion Engine Engine Ion Engine Propulsion Light Treads Treads Light Treads Utility Large Storage Unit Device Tractor Beam Storage Large Storage Unit Protection Light Armor Plating Weapon Assault Rifle Energy Gun Medium Laser Ballistic Gun Assault Rifle Impact Weapon Hammer Build | -11 -10 -10 -10 -9 ------- Run | Yrd Mat Min Exi Min Slots Evolved . | . . . . . Power . | . . . . . Propulsion . | . . . . . Utility . | . . . . . Weapon . | . . . . . Parts Attached 15 | 6 7 1 . 1 Power 1 | 1 . . . . Engine 1 | 1 . . . . Core . | . . . . . Reactor . | . . . . . Propulsion 2 | 2 . . . . Treads 2 | 2 . . . . Leg . | . . . . . Wheel . | . . . . . Hover . | . . . . . Flight . | . . . . . Utility 6 | 1 5 . . . Device 1 | . 1 . . . Storage 3 | 1 2 . . . Processor . | . . . . . Hackware . | . . . . . Protection 2 | . 2 . . . Artifact . | . . . . . Weapon 6 | 2 2 1 . 1 Energy Gun 3 | 1 . 1 . 1 Energy Cannon . | . . . . . Ballistic Gun 2 | 1 1 . . . Ballistic Cannon . | . . . . . Launcher . | . . . . . Special Weapon . | . . . . . Impact Weapon 1 | . 1 . . . Slashing Weapon . | . . . . . Piercing Weapon . | . . . . . Special Melee Weapon . | . . . . . Unidentified Prototypes . | . . . . . Parts Lost 4 | . 1 1 . 2 Power . | . . . . . Propulsion 2 | . . 1 . 1 Utility 2 | . 1 . . 1 Weapon . | . . . . . Highest Loss Streak 2 | . 1 1 . 2 To Critical Strikes . | . . . . . Average Slot Usage (%) 89 | . 95 85 85 71 Engine 14 | . 14 14 14 14 Treads 20 | . 28 14 14 9 Device 1 | . 3 . . . Storage 14 | . 14 14 14 14 Protection 10 | . 6 14 14 4 Energy Gun 8 | . 3 12 14 23 Ballistic Gun 13 | . 13 14 14 4 Impact Weapon 5 | . 10 1 . . Peak Build Rating 9 | 6 8 8 9 9 Average Rating 7 | 4 6 7 8 8 On Entrance 6 | . 6 8 7 9 Naked Turns . | . . . . . Heaviest Build 32 | 14 32 32 32 . Greatest Support 40 | 40 40 40 20 . Greatest Overweight (x) 1 | . . 1 1 . Average Overweight (x) . | . . . 1 . Largest Inventory Capacity 15 | 8 15 15 15 15 Average Capacity 14 | 7 14 15 15 15 Most Carried 15 | 2 11 11 15 15 Average Carried 8 | 1 5 11 14 14 Final Capacity 15 | 8 15 15 15 15 Final Carried 15 | 2 11 11 15 14 Class Distribution -------------------- 100% | Mutant Dominant Class ---------------- Mutant | -10/Materials Mutant | -10/Mines Mutant | -10/Exiles Mutant | -9/Mines Resources | -11 -10 -10 -10 -9 ----------- Run | Yrd Mat Min Exi Min Matter Collected 436 | 177 231 28 . . Remotely 105 | . 105 . . . Salvage Created 790 | . 615 119 . 56 Parts 33 | . 27 5 . 1 Haulers Intercepted 2 | . 2 . . . Recyclers Shooed . | . . . . . Parts Field Recycled . | . . . . . Retrieved Matter . | . . . . . Parts Self-Destructed . | . . . . . Prevented . | . . . . . Kills | -11 -10 -10 -10 -9 ------- Run | Yrd Mat Min Exi Min Combat Hostiles Destroyed 17 | . 13 3 . 1 Melee 7 | . 5 2 . . Guns 4 | . 3 1 . . AOE 1 | . 1 . . . Classes Destroyed 8 | . 7 . . 1 Worker 1 | . 1 . . . Hauler 2 | . 2 . . . Mechanic 1 | . 1 . . . Operator 2 | . 2 . . . Watcher 2 | . 2 . . . Swarmer 5 | . 5 . . . Grunt 11 | . 8 3 . . Duelist 1 | . . . . 1 Best Kill Streak 4 | . 4 3 . 1 Combat Bots Only 4 | . 4 2 . 1 Max Kills in Single Turn 1 | . 1 1 . 1 Gunslinging . | . . . . . Exploded 1 | . 1 . . . Melee 1 | . 1 1 . . Uniques/NPCs Destroyed . | . . . . . Combat | -11 -10 -10 -10 -9 -------- Run | Yrd Mat Min Exi Min Hostile Shots Fired 108 | . 90 9 . 9 Missed 30 | . 26 3 . 1 Damage Taken 903 | . 601 104 . 198 Core 258 | . 143 28 . 87 Absorbed by Shields . | . . . . . Redirected to Shielding 4 | . 4 . . . Regen/Repaired (Parts) 82 | . 82 . . . Core Remaining (%) 100 | 100 . . . . Volleys Fired 43 | . 29 6 . 8 Largest 2 | . 2 2 . 2 Hottest 100 | . 60 70 . 100 Shots Fired 71 | . 44 12 . 15 Gun 71 | . 44 12 . 15 Cannon . | . . . . . Launcher . | . . . . . Special . | . . . . . Kinetic 34 | . 26 6 . 2 Thermal 19 | . . 6 . 13 Explosive . | . . . . . Electromagnetic 18 | . 18 . . . Robot Hit Streak 10 | . 9 3 . 10 Robot Miss Streak 4 | . 4 2 . 1 Penetration Max . | . . . . . Secondary Targets . | . . . . . Shots Hit Robots 79 | . 54 11 . 14 Core Hits 25 | . 17 6 . 2 Critical Kills 3 | . 3 . . . Critical Parts Destroyed 5 | . 4 1 . . Critical Strikes 9 | . 7 1 . 1 Burn 1 | . . . . 1 Smash 8 | . 7 1 . . Melee Attacks 48 | . 43 5 . . Impact 48 | . 43 5 . . Slashing . | . . . . . Piercing . | . . . . . Sneak Attacks 7 | . 7 . . . Combat Hostiles 1 | . 1 . . . Follow-up Attacks . | . . . . . Damage Inflicted 1801 | . 1400 222 . 179 Guns 567 | . 290 98 . 179 Cannons . | . . . . . Explosions 79 | . 79 . . . Melee 1155 | . 1031 124 . . Ramming . | . . . . . Kinetic 233 | . 159 47 . 27 Thermal 282 | . 79 51 . 152 Explosive . | . . . . . Electromagnetic 131 | . 131 . . . Impact 1155 | . 1031 124 . . Slashing . | . . . . . Piercing . | . . . . . Highest Corruption . | . . . . . Average Corruption . | . . . . . Corruption Purged . | . . . . . Corruption Blocked . | . . . . . Overload Shots . | . . . . . Overflow Damage 317 | . 280 37 . . Projectiles . | . . . . . Explosions . | . . . . . Melee 317 | . 280 37 . . Knockbacks 8 | . 8 . . . Impact 7 | . 7 . . . Kinetic . | . . . . . Secondary 1 | . 1 . . . Self-Inflicted Damage . | . . . . . Shots . | . . . . . Rammed . | . . . . . Targets Rammed . | . . . . . Kicked . | . . . . . Crushed . | . . . . . Highest Temperature 254 | . 87 78 . 254 Average Temperature 52 | . 32 30 . 105 Received Heat Transfer 282 | . 207 57 . 18 Siege Activations . | . . . . . Robots Corrupted 7 | . 7 . . . Combat Hostiles 4 | . 4 . . . Parts Fried 12 | . 12 . . . Impact Corruptions 17 | . 16 1 . . Robots Melted 1 | . . . . 1 Combat Hostiles 1 | . . . . 1 Parts Melted 1 | . . . . 1 Heat Transferred 716 | . 50 148 . 518 Parts Sabotaged . | . . . . . Parts Stolen . | . . . . . Parts Stripped . | . . . . . Power Chain Reactions 1 | . 1 . . . Alert | -11 -10 -10 -10 -9 ------- Run | Yrd Mat Min Exi Min Peak Influence 232 | . 232 144 . 30 Initial 16 | . . 16 . . Average 50 | . 59 44 . 2 Maximum Alert Level 1 | . 1 . . . Low Security (%) 96 | 100 92 100 . 100 Level 1 3 | . 7 . . . Level 2 . | . . . . . Level 3 . | . . . . . Level 4 . | . . . . . Level 5 . | . . . . . High Security . | . . . . . Max Security . | . . . . . Squads Dispatched 4 | . 4 . . . Investigation 3 | . 3 . . . Extermination . | . . . . . Reinforcement 1 | . 1 . . . Assault . | . . . . . Garrison . | . . . . . Intercept . | . . . . . Searches Triggered . | . . . . . Construction Impeded . | . . . . . Haulers Reinforced . | . . . . . Active Scanning Responses . | . . . . . Cargo Convoy Interrupts . | . . . . . Stealth | -11 -10 -10 -10 -9 --------- Run | Yrd Mat Min Exi Min Distress Signals 1 | . 1 . . . Communications Jammed . | . . . . . Distress Signals . | . . . . . Times Spotted 29 | . 20 7 . 2 Peak Tracking Total 5 | . 5 3 . 2 Tactical Retreats . | . . . . . Traps | -11 -10 -10 -10 -9 ------- Run | Yrd Mat Min Exi Min Traps Triggered . | . . . . . Indirectly . | . . . . . Trap Hack Attempts . | . . . . . Triggered . | . . . . . Disarmed . | . . . . . Reprogrammed . | . . . . . Reused . | . . . . . Traps Extracted . | . . . . . Installed . | . . . . . Triggered . | . . . . . Machines | -11 -10 -10 -10 -9 ---------- Run | Yrd Mat Min Exi Min Machines Disabled . | . . . . . Max in Single Turn . | . . . . . Machines Repaired . | . . . . . Machines Dismantled . | . . . . . Machines Sabotaged . | . . . . . Overloaded Fab Kills . | . . . . . Hacking | -11 -10 -10 -10 -9 --------- Run | Yrd Mat Min Exi Min Machines Accessed 12 | . 10 . 2 . Terminals 7 | . 7 . . . Fabricators . | . . . . . Repair Stations 1 | . 1 . . . Recycling Units 2 | . 2 . . . Scanalyzers . | . . . . . Garrison Access . | . . . . . Total Hacks 26 | . 24 . 2 . Successful 19 | . 17 . 2 . Failed 6 | . 6 . . . Catastrophic 1 | . 1 . . . Database Lockouts 1 | . 1 . . . Manual 12 | . 11 . 1 . Terminals 19 | . 19 . . . Fabricators . | . . . . . Repair Stations 2 | . 2 . . . Recycling Units 3 | . 3 . . . Scanalyzers . | . . . . . Garrison Access . | . . . . . Terminal Hacks 13 | . 11 . 2 . Record 1 | . . . 1 . Part Schematic 1 | . 1 . . . Robot Analysis 4 | . 4 . . . Prototype ID Bank 1 | . 1 . . . Alert Level 1 | . 1 . . . Unreport Threat 1 | . 1 . . . Locate Traps 3 | . 3 . . . Derelict Proto ID Bank 1 | . . . 1 . Fabricator Hacks . | . . . . . Repair Station Hacks 2 | . 2 . . . Scan Component 1 | . 1 . . . Repair 1 | . 1 . . . Recycling Unit Hacks . | . . . . . Scanalyzer . | . . . . . Garrison Access Hacks . | . . . . . Unauthorized Hacks 4 | . 4 . . . Terminals 2 | . 2 . . . Assimilate 1 | . 1 . . . Botnet 1 | . 1 . . . Fabricators . | . . . . . Repair Stations . | . . . . . Recycling Units 2 | . 2 . . . Tunnel 2 | . 2 . . . Scanalyzers . | . . . . . Garrison Access . | . . . . . Data Cores Recovered 1 | . 1 . . . Used 1 | . 1 . . . Hacking Detections 8 | . 8 . . . Full Trace Events 2 | . 2 . . . Feedback Events . | . . . . . Feedback Blocked . | . . . . . Robot Schematics Acquired . | . . . . . Robots Built . | . . . . . Authchips . | . . . . . Time . | . . . . . Total Robot Build Rating . | . . . . . Part Schematics Acquired 1 | . 1 . . . Parts Built . | . . . . . Authchips . | . . . . . Time . | . . . . . Total Part Build Rating . | . . . . . Parts Repaired 1 | . 1 . . . Time 26 | . 26 . . . Parts Recycled . | . . . . . Recycled Matter . | . . . . . Retrieved Matter . | . . . . . Retrieved Components . | . . . . . Parts Scanalyzed . | . . . . . Part Schematics Acquired . | . . . . . Parts Damaged . | . . . . . Bothacking | -11 -10 -10 -10 -9 ------------ Run | Yrd Mat Min Exi Min Used RIF Installer . | . . . . . Robots Hacked . | . . . . . Non-combat . | . . . . . Combat . | . . . . . Robot Hacks Applied . | . . . . . Relay Couplers Released . | . . . . . Fabnet Peak Effective % . | . . . . . Robots Rewired . | . . . . . Allies Hacked . | . . . . . Hacks Repelled . | . . . . . Allies | -11 -10 -10 -10 -9 -------- Run | Yrd Mat Min Exi Min Total Allies 5 | . . 5 . . Largest Group 3 | . . 3 3 1 Highest-Rated Group 57 | . . 57 57 16 Highest-Rated Ally 31 | . . 31 31 16 Total Orders . | . . . . . Ally Attacks 32 | . . 23 . 9 Total Damage 335 | . . 274 . 61 Kills 7 | . . 7 . . Allies Corrupted . | . . . . . Allies Melted . | . . . . . Intel | -11 -10 -10 -10 -9 ------- Run | Yrd Mat Min Exi Min Robot Analysis Total 4 | . 4 . . . Derelict Logs Recovered . | . . . . . Drone Launches . | . . . . . Drone Recoveries . | . . . . . Exploration | -11 -10 -10 -10 -9 ------------- Run | Yrd Mat Min Exi Min Turns Passed 2619 | 74 1169 856 496 24 Spaces Moved 1084 | 42 575 261 206 . Core 3 | 3 . . . . Treads 1081 | 39 575 261 206 . Legs . | . . . . . Wheels . | . . . . . Hover . | . . . . . Flight . | . . . . . Fastest Speed 50 | 50 160 160 240 . Average Speed 194 | 152 160 239 240 . Slowest Speed 240 | 160 160 240 240 . Overloaded Moves . | . . . . . Propulsion Burnouts . | . . . . . Robots Hopped . | . . . . . Cave-ins Triggered . | . . . . . Exploration Rate (%) 43 | 4 93 50 60 10 Regions Visited 4 Branch Regions 3 Pre-discovered Areas 3 | . 2 . 1 . Known Exits Taken . | . . . . . Unknown Exits Taken 4 | 1 1 1 1 . Scrap Searched . | . . . . . Spaces Dug 2 | . 2 . . . Terrain Destroyed 5 | . 5 . . . Melee 2 | . 2 . . . Projectile . | . . . . . AOE 3 | . 3 . . . Terrain Rammed . | . . . . . Walls Destroyed . | . . . . . Machines Disabled . | . . . . . Actions | -11 -10 -10 -10 -9 --------- Run | Yrd Mat Min Exi Min Total 1440 | 49 702 471 209 9 Wait 239 | . 40 199 . . Move 1080 | 41 574 260 205 . Hop . | . . . . . Pick Up 14 | 2 8 . 4 . Fast Attach 10 | 6 4 . . . Attach 1 | . . . . 1 Detach . | . . . . . Swap 4 | . 3 1 . . Drop 1 | . 1 . . . Fire 43 | . 29 6 . 8 Melee 48 | . 43 5 . . Ram . | . . . . . Kick . | . . . . . Crush . | . . . . . Escape Stasis . | . . . . . Rewire . | . . . . . Trap . | . . . . . Miscellaneous . | . . . . . Route ------- -11/Scrapyard -10/Materials (discovered 4 exits: [*Mat x3] / [*Min]) -10/Mines (discovered 2 exits: [*Mat] / *Exi) -10/Exiles -9/Mines History --------- Turn | Location | Event 9 | -11/Scrapyard | Discovered new exit (range 15) 75 | -11/Scrapyard | Entered Materials 309 | -10/Materials | Build established: Mutant 427 | -10/Materials | Discovered new exit (range 14) 549 | -10/Materials | Core integrity fell below 50% 677 | -10/Materials | Repaired Assault Rifle 715 | -10/Materials | Discovered new exit (range 15) 790 | -10/Materials | Discovered new exit (range 5) 995 | -10/Materials | Central database locked down 1068 | -10/Materials | Discovered new exit (range 8) 1244 | -10/Materials | Entered Mines 1386 | -10/Mines | Discovered new exit (range 5) 1396 | -10/Mines | Assisted by bots powering up and referring to "LRC-V3" 1492 | -10/Mines | Deemed a non-threat by the Exiles lab entrance 1492 | -10/Mines | Discovered new exit (range 5) 1547 | -10/Mines | Excavation squad dispatched 1547 | -10/Mines | A large section of the Mines collapsed 2100 | -10/Mines | Entered Exiles 2100 | -10/Exiles | Accompanied by 3 allies 2130 | -10/Exiles | Led the pair of lost Derelicts to a safe place 2163 | -10/Exiles | Met 8R-AWN 2202 | -10/Exiles | Met EX-HEX 2269 | -10/Exiles | Met EX-BIN 2303 | -10/Exiles | Aligned with FarCom system 2305 | -10/Exiles | Given EX-Vault access code 2363 | -10/Exiles | Opened EX-Vault 2372 | -10/Exiles | Found Longsword +1 2419 | -10/Exiles | Warned to stay clear of 0b10 Research branches 2461 | -10/Exiles | Exiles lab attacked by MAIN.C 2505 | -10/Exiles | Learned location of Zion (-7) 2577 | -10/Exiles | Discovered new exit (range 10) 2596 | -10/Exiles | Left Exiles lab with Longsword +1 2596 | -10/Exiles | Entered Mines 2596 | -9/Mines | Accompanied by 1 ally 2604 | -9/Mines | Met a Derelict bent on vengeance 2615 | -9/Mines | Core integrity fell below 20% 2620 | -9/Mines | Destroyed by G-34 Mercenary with Small Laser Last Messages --------------- 02512_ 8R-AWN: "We've got company!" 02516_ 8R-AWN: "I'll cover you all, get out of here!" 02577_ EXIT=FOUND 02594_ J5-HVA exits level. 02596_ 5L-KAT exits level. LOCATION=UNKNOWN GOAL=ESCAPE 02596_ Receiving FarCom transmissions... 02598_ GM-J5T: "That was close. Too bad in all the rush we got split up from the others." 02601_ Assault Rifle severed. 02609_ Lgt. Armor Plating destroyed. 02611_ Lgt. Treads destroyed. 02611_ L-31 Rogue suffers critical hit (Burn). 02613_ Trooper 1a destroyed. 02614_ Melted Imp. Aluminum Leg. 02615_ L-31 Rogue heat damages Core Shielding. 02616_ L-31 Rogue overheating. 02619_ L-31 Rogue heat damages core (-5). Map ----- +----------------------------------------------------+ | ????????????????????????????????????????????????? | | ????????????????????????????????????????????????? | | ????????????????????????????????????????????????? | | ????????????????????????????????????????????????? | | ????????????????????????????????????????????????? | | ????????????????????????????????????????????????? | | ????????????????????????????????????????????????? | | ????????????????????????????????????????????????? | | ????????????????????????????????????????????????? | | ????????????????????????????????????????????????? | | ????????????????????????????????????????????????? | | ????????????????????????????????????????????????? | | ???????????????????????? ???????????????????????? | | ???????????????????????? ???????????????????????? | | ???????????????????????? ##?????????????????????? | | ???????????????????????? ?????????????????????? | | ???????????????????????? ?????????????????????? | | ????????????????????????" "?????????????????????? | | ??????????????????# ???"" ""????????????????????? | | ??????????????????# """ """ """???????????????? | | ??????????????????# ???????????????? | | ????????????####### """ """ """ ??????????????? | | ????????????# """ """ """ #?????????????? | | ?????????????? """ """ """ #?????????????? | | ??????????????????# g = #?????????????? | | ??????????????????# %@ """ #?????????????? | | ??????????????????# ! """ #?????????????? | | ??????????????????# *%= """ ??????????????? | | ??????????????????# = #?????????????? | | ??????????????????# """ """ """ #?????????????? | | ??????????????????# """ """ """ ????????????? | | ??????????????????# """ """ """ ? ???????????? | | ??????????????????# ???????????????? | | ??????????????????# ? ? ???????????????? | | ??????????????????##????###????###??????????????? | | ????????????????????????????????????????????????? | | ????????????????????????????????????????????????? | | ????????????????????????????????????????????????? | | ????????????????????????????????????????????????? | | ????????????????????????????????????????????????? | | ????????????????????????????????????????????????? | | ????????????????????????????????????????????????? | | ????????????????????????????????????????????????? | | ????????????????????????????????????????????????? | | | | | | | | | | | | | +----------------------------------------------------+ Best States ------------- Heat Dissipation 25 Energy Generation 10 Energy Capacity 250 Matter Stores 300 Matter Capacity 300 Sight Range 16 Terrain Scan Density 10 Armor Coverage 150 Weapon Shielding 33 Evasion (%) 40 Recoil Reduction 2 Item Schematics ----------------- Hcp. Storage Unit | -10/Materials | Hacked Robot Schematics ------------------ None Fabricated ------------ Nothing Alien Tech Used ----------------- None Achievements -------------- None Challenges ------------ None Game ------ Seed TripodCompositeWartreads Manual? 0 Play Time 00:11:57 Cumulative 178.7 hours Start 2024.11.16 @ 21:10:39 End 2024.11.16 @ 21:25:33 Sessions 1 Manual Loads 0 Difficulty Rogue Special Mode None Game No. 109 Rogue 73 Adventurer 36 Explorer 0 Win Type - Total 3 Types 2/0/0/1/0/0/0/0/0 Lore% 56 Gallery% 65 Achievement% 57 Wizard Run 0 Options --------- Layout 1 ASCII 0 Keyboard 0 Movement Numpad Keybinds 0 Fullscreen 1 Font 48/Smallcaps Map View 50x35 Zoom Use 0% Tactical HUD 1 Map Filters NONE Filters NONE Steam 1 RUN: 18d4e120-1cb1-40aa-b09a-8a60d8db9a4d